fUSD/lending_fUSD_20241215
["ID","MTS","AMOUNT","RATE_DAILY","PERIOD"]
[345421323,1734249196565,-500.0,0.00022,2]
[345421324,1734249196578,-500.0,0.00022,2]
[345421325,1734249196591,-500.0,0.00022,2]
[345421326,1734249196604,-2000.0,0.00022,12]
[345421327,1734249196616,-562.58,0.00022,2]
[345421328,1734249196629,-3400.0,0.00022,120]
[345421329,1734249196642,-150.0,0.00022,2]
[345421330,1734249197162,-1004.56,0.00022,8]
[345421331,1734249197234,-2110.0,0.00022,2]
[345421332,1734249197243,-208.0,0.00022,2]
[345421333,1734249197253,-200.0,0.00022,2]
[345421334,1734249197262,-393.0,0.00022,10]
[345421335,1734249197273,-5569.37,0.00022008,7]
[345421336,1734249197283,-5569.37,0.00022008,7]
[345421337,1734249197292,-333.121506,0.00022048,8]
[345421338,1734249197301,-222.121513,0.00022048,9]
[345421339,1734249197310,-222.121513,0.00022048,8]
[345421340,1734249197319,-222.121513,0.00022048,7]
[345421341,1734249197329,-222.121513,0.00022048,6]
[345421342,1734249197338,-222.121513,0.00022048,5]
[345421343,1734249197348,-222.121513,0.00022048,4]
[345421344,1734249197357,-222.121513,0.00022048,3]
[345421345,1734249197366,-222.121513,0.00022048,2]
[345421346,1734249197375,-465.0,0.0002205,2]
[345421347,1734249197386,-1732.67792484,0.00022064,7]
[345421348,1734249197396,-1239.20571,0.00022088,7]
[345421349,1734249197407,-333.121506,0.00022148,8]
[345421350,1734249197416,-222.121513,0.00022148,2]
[345421351,1734249197425,-150.121516,0.00022148,9]
[345421352,1734249197435,-150.121516,0.00022148,8]
[345421353,1734249197444,-150.121516,0.00022148,7]
[345421354,1734249197456,-150.121516,0.00022148,6]
[345421355,1734249197466,-150.121516,0.00022148,5]
[345421356,1734249197477,-150.121516,0.00022148,4]
[345421357,1734249197488,-150.121516,0.00022148,3]
[345421358,1734249197500,-1732.67792484,0.00022176,7]
[345421359,1734249197510,-4645525.03397653,0.000222,2]
[345421360,1734249197521,-3774113.0563802,0.000222,2]
[345421361,1734249197533,-42636.27707309,0.000222,2]
[345421362,1734249197546,-150.121516,0.00022248,2]
[345421363,1734249197556,-150.121516,0.00022248,3]
[345421364,1734249197567,-150.121516,0.00022248,4]
[345421365,1734249197577,-150.121516,0.00022248,5]
[345421366,1734249197587,-150.121516,0.00022248,6]
[345421367,1734249197597,-150.121516,0.00022248,7]
[345421368,1734249197608,-150.121516,0.00022248,8]
[345421369,1734249197618,-150.121516,0.00022248,9]
[345421370,1734249197628,-150.121516,0.00022248,8]
[345421371,1734249197638,-465.0,0.00022275,2]
[345421372,1734249197648,-5569.37,0.00022281,7]
[345421373,1734249197658,-5569.37,0.00022281,7]
[345421374,1734249197668,-1732.67792484,0.00022288,7]
[345421375,1734249197678,-1239.20571,0.00022288,7]
[345421376,1734249197687,-4823.977708,0.000223,7]
[345421377,1734249197698,-150.121514,0.00022348,9]
[345421378,1734249197708,-150.121514,0.00022348,8]
[345421379,1734249197718,-150.121514,0.00022348,7]
[345421380,1734249197728,-150.121516,0.00022348,6]
[345421381,1734249197738,-150.121516,0.00022348,5]
[345421382,1734249197748,-150.121516,0.00022348,4]
[345421383,1734249197757,-150.121516,0.00022348,3]
[345421384,1734249197767,-150.121516,0.00022348,2]
[345421385,1734249197780,-150.121516,0.00022348,9]
[345421386,1734249197790,-1732.67,0.000224,7]
[345421387,1734249197801,-113170.92003667,0.000224,2]
[345421388,1734249197810,-50731.73091865,0.000224,2]
[345421389,1734249197823,-2263.28,0.000224,31]
[345421390,1734249197832,-2263.28,0.000224,31]
[345421391,1734249197842,-2263.28,0.000224,31]
[345421392,1734249197853,-2263.28,0.000224,31]
[345421393,1734249197863,-2263.28,0.000224,31]
[345421394,1734249197873,-2263.28,0.000224,31]
[345421395,1734249197883,-2263.28,0.000224,31]
[345421396,1734249197894,-2263.28,0.000224,31]
[345421397,1734249197904,-2263.28,0.000224,31]
[345421398,1734249197915,-2263.28,0.000224,31]
[345421399,1734249197925,-2263.28,0.000224,31]
[345421400,1734249197935,-2263.28,0.000224,31]
[345421401,1734249197945,-2263.28,0.000224,31]
[345421402,1734249197958,-2263.28,0.000224,31]
[345421403,1734249197970,-2263.28,0.000224,31]
[345421404,1734249197980,-2263.28,0.000224,31]
[345421405,1734249197990,-158.22,0.00022431,2]
[345421406,1734249198002,-150.121514,0.00022448,2]
[345421407,1734249198012,-150.121514,0.00022448,3]
[345421408,1734249198024,-150.121514,0.00022448,4]
[345421409,1734249198035,-150.121514,0.00022448,5]
[345421410,1734249198045,-150.121514,0.00022448,6]
[345421411,1734249198055,-150.121514,0.00022448,7]
[345421412,1734249198065,-150.121514,0.00022448,8]
[345421413,1734249198075,-150.121514,0.00022448,9]
[345421414,1734249198084,-150.121514,0.00022448,9]
[345421415,1734249198094,-150.121514,0.00022448,9]
[345421416,1734249198103,-50133.11074855,0.0002245,2]
[345421417,1734249198113,-999.0,0.00022465,6]
[345421418,1734249198123,-204.0,0.0002247,2]
[345421419,1734249198132,-208.0,0.0002247,2]
[345421420,1734249198142,-200.0,0.0002247,2]
[345421421,1734249198152,-1239.20571,0.00022488,7]
[345421422,1734249198162,-181212.07602417,0.00022493,10]
[345421423,1734249198172,-23617.80812132,0.00022499,2]
[345421424,1734249198182,-505.111125,0.00022499,120]
[345421425,1734249198191,-202.238054,0.00022499,120]
[345421426,1734249198201,-38113605.23047412,0.000225,2]
[345421427,1734249203701,-8606232.72,0.000225,2]
[345421428,1734249203712,-1821158.295,0.000225,2]
[345421429,1734249203723,-2252851.10892,0.000225,2]
[345421430,1734249203755,-299.11731126,0.00013698,2]
[345421431,1734249203766,-1066.57268874,0.00013698,2]
[345421432,1734249203777,-4864.52096234,0.00013698,2]
[345421433,1734249203789,-261.44903766,0.00013698,2]
[345421434,1734249203799,-379.35096234,0.00013698,2]
[345421435,1734249203811,-120.64903766,0.00013698,2]
[345421436,1734249203821,-57630.70054049,0.000225,2]
[345421437,1734249203846,-500.0,0.00013698,2]
[345421438,1734249203856,-530.44,0.00013698,2]
[345421439,1734249203866,-4097.11825128,0.000225,2]
[345421440,1734249203877,-571.72170112,0.000225,2]
[345421441,1734249203890,-2420.0000035,0.000225,2]
[345421442,1734249204427,-1365.69,0.00013698,2]
[345421443,1734249204437,-4625.28,0.00013698,2]
[345421444,1734249204447,-500.0,0.00013698,2]
[345421445,1734249204457,-500.0,0.00013698,2]
[345421446,1734249204466,-2278.26571699,0.00013698,2]
[345421447,1734249204483,-2847.70428301,0.00013698,2]
[345421448,1734249204493,-500.0,0.00013698,2]
[345421449,1734249204502,-500.0,0.00013698,2]
[345421450,1734249204512,-530.44,0.00013698,2]
[345421451,1734249204521,-703.90311699,0.00013698,2]
[345421452,1734249204636,-661.78688301,0.00013698,2]
[345421453,1734249204646,-22.16060656,0.00013698,2]
[345421454,1734249204658,-477.83939344,0.00013698,2]
[345421455,1734249204667,-323.02687385,0.00013698,2]
[345421456,1734249204679,-176.97312615,0.00013698,2]
[345421457,1734249204688,-500.0,0.00013698,2]
[345421458,1734249204698,-441.5768739,0.00013698,2]
[345421459,1734249204739,-4183.7031261,0.00013698,2]
[345421460,1734249204748,-5125.97,0.00013698,2]
[345421461,1734249204758,-500.0,0.00013698,2]
[345421462,1734249204767,-530.44,0.00013698,2]
[345421463,1734249204779,-501.8248317,0.00013698,2]
[345421464,1734249204788,-500.0,0.00013698,2]
[345421465,1734249204798,-500.0,0.00013698,2]
[345421466,1734249204808,-500.0,0.00013698,2]
[345421467,1734249204818,-4625.28,0.00013698,2]
[345421468,1734249204828,-5125.97,0.00013698,2]
[345421469,1734249204838,-1365.69,0.00013698,2]
[345421470,1734249204847,-259.92285562,0.00013698,2]
[345421471,1734249204859,-240.07714438,0.00013698,2]
[345421472,1734249204868,-530.44,0.00013698,2]
[345421473,1734249204877,-500.0,0.00013698,2]
[345421474,1734249204887,-500.0,0.00013698,2]
[345421475,1734249204896,-1388.91599175,0.00013698,2]
[345421476,1734249204907,-3236.54400825,0.00013698,2]
[345421477,1734249204918,-1365.69,0.00013698,2]
[345421478,1734249204927,-5125.97,0.00013698,2]
[345421479,1734249204936,-500.0,0.00013698,2]
[345421480,1734249204947,-530.44,0.00013698,2]
[345421481,1734249204960,-500.0,0.00013698,2]
[345421482,1734249204969,-5125.97,0.00013698,2]
[345421483,1734249204979,-1365.69,0.00013698,2]
[345421484,1734249204988,-500.0,0.00013698,2]
[345421485,1734249204998,-530.55059499,0.00013698,2]
[345421486,1734249205008,-504.34837536,0.00013698,2]
[345421487,1734249205017,-5125.97,0.00013698,2]
[345421488,1734249205029,-500.0,0.00013698,2]
[345421489,1734249205040,-1365.69,0.00013698,2]
[345421490,1734249205049,-500.0,0.00013698,2]
[345421491,1734249205059,-500.0,0.00013698,2]
[345421492,1734249205068,-5125.97,0.00013698,2]
[345421493,1734249205078,-1365.69,0.00013698,2]
[345421494,1734249205087,-500.0,0.00013698,2]
[345421495,1734249205097,-500.0,0.00013698,2]
[345421496,1734249205106,-500.0,0.00013698,2]
[345421497,1734249205116,-5126.18,0.00013698,2]
[345421498,1734249205127,-500.0,0.00013698,2]
[345421499,1734249205136,-500.0,0.00013698,2]
[345421500,1734249205145,-1365.69,0.00013698,2]
[345421501,1734249205155,-500.0,0.00013698,2]
[345421502,1734249205164,-500.0,0.00013698,2]
[345421503,1734249205173,-1365.69,0.00013698,2]
[345421504,1734249205182,-376.3,0.00013698,2]
[345421505,1734249205192,-1365.69,0.00013698,2]
[345421506,1734249205201,-500.0,0.00013698,2]
[345421507,1734249205210,-500.0,0.00013698,2]
[345421508,1734249205220,-1365.69,0.00013698,2]
[345421509,1734249205229,-515.6200793,0.00013698,2]
[345421510,1734249205239,-2657.34242463,0.00013698,2]
[345421511,1734249205250,-584.64757537,0.00013698,2]
[345421512,1734249205259,-332916.65236324,0.000225,2]
[345421513,1734249205270,-4624.01554964,0.000225,2]
[345421514,1734249205283,-6229.36169738,0.000225,2]
[345421515,1734249205295,-461.40094023,0.000225,2]
[345421516,1734249205314,-500.0,0.00013698,2]
[345421517,1734249205324,-9747.03278075,0.000225,2]
[345421518,1734249205335,-1920.0,0.000225,2]
[345421519,1734249205730,-4630.29411405,0.00012914,2]
[345421520,1734249205741,-766.0,0.00013548,2]
[345421521,1734249205751,-1365.69,0.00013698,2]
[345421522,1734249205761,-414.01588595,0.00013698,2]
[345421523,1734249205773,-85.98411405,0.00013698,2]
[345421524,1734249205783,-297.35108113,0.00013698,2]
[345421525,1734249205795,-555.304766,0.00013698,2]
[345421526,1734249205807,-522.01898272,0.00013698,2]
[345421527,1734249205819,-1867.31517015,0.00013698,2]
[345421528,1734249205829,-554.9,0.00013698,2]
[345421529,1734249205839,-1365.69,0.00013698,2]
[345421530,1734249205849,-500.0,0.00013698,2]
[345421531,1734249205859,-3241.99,0.00013698,2]
[345421532,1734249205868,-1365.69,0.00013698,2]
[345421533,1734249205878,-500.0,0.00013698,2]
[345421534,1734249205887,-500.0,0.00013698,2]
[345421535,1734249205897,-3241.99,0.00013698,2]
[345421536,1734249205907,-1365.69,0.00013698,2]
[345421537,1734249205917,-500.0,0.00013698,2]
[345421538,1734249205926,-3241.99,0.00013698,2]
[345421539,1734249205936,-1365.69,0.00013698,2]
[345421540,1734249205945,-500.0,0.00013698,2]
[345421541,1734249205955,-3241.99,0.00013698,2]
[345421542,1734249205968,-1365.69,0.00013698,2]
[345421543,1734249205978,-500.0,0.00013698,2]
[345421544,1734249205988,-500.0,0.00013698,2]
[345421545,1734249205997,-3241.99,0.00013698,2]
[345421546,1734249206008,-500.0,0.00013698,2]
[345421547,1734249206017,-264.1,0.00013698,2]
[345421548,1734249206029,-1365.69,0.00013698,2]
[345421549,1734249206040,-500.0,0.00013698,2]
[345421550,1734249206050,-3241.99,0.00013698,2]
[345421551,1734249206059,-500.0,0.00013698,2]
[345421552,1734249206069,-217.38664531,0.00013698,2]
[345421553,1734249206078,-3241.99,0.00013698,2]
[345421554,1734249206088,-500.0,0.00013698,2]
[345421555,1734249206097,-3241.99,0.00013698,2]
[345421556,1734249206106,-9840.71703035,0.000225,2]
[345421557,1734249206117,-424.06799313,0.000225,2]
[345421558,1734249206146,-405.93109519,0.00013698,2]
[345421559,1734249206158,-94.06890481,0.00013698,2]
[345421560,1734249206167,-355.37109519,0.000225,2]
[345421561,1734249206190,-3241.99,0.00013698,2]
[345421562,1734249206200,-500.0,0.00013698,2]
[345421563,1734249206209,-5949.91406424,0.000225,2]
[345421564,1734249206219,-6800.0,0.000225,2]
[345421565,1734249206230,-8661.885694,0.000225,2]
[345421566,1734249206241,-14968.70392,0.000225,2]
[345421567,1734249206253,-22342.0908,0.000225,2]
[345421568,1734249206264,-27686.29024,0.000225,2]
[345421569,1734249206276,-16166.72813311,0.000225,2]
[345421570,1734249206287,-33939.42471689,0.000225,2]
[345421571,1734249206298,-963.08791823,0.000225,2]
[345421572,1734249206336,-797.22548847,0.000225,2]
[345421573,1734249206347,-20674.0,0.000225,2]
[345421574,1734249206358,-3996.70000002,0.000225,2]
[345421575,1734249220042,-1649.2603,0.000127,2]
[345421576,1734249220065,-268.3,0.00012891,2]
[345421577,1734249220088,-268.3,0.00012895,2]
[345421578,1734249220111,-268.3,0.00012898,2]
[345421579,1734249220136,-268.3,0.00012902,2]
[345421580,1734249220158,-268.3,0.00012905,2]
[345421581,1734249220182,-268.3,0.00012908,2]
[345421582,1734249220204,-268.3,0.00012912,2]
[345421583,1734249220225,-268.3,0.00012915,2]
[345421584,1734249220245,-268.3,0.00012918,2]
[345421585,1734249220266,-268.3,0.00012922,2]
[345421586,1734249220289,-268.3,0.00012925,2]
[345421587,1734249220309,-268.3,0.00012929,2]
[345421588,1734249220329,-268.3,0.00012932,2]
[345421589,1734249220350,-268.3,0.00012935,2]
[345421590,1734249220370,-268.3,0.00012939,2]
[345421591,1734249220391,-268.3,0.00012942,2]
[345421592,1734249220412,-268.3,0.00012946,2]
[345421593,1734249220433,-268.3,0.00012949,2]
[345421594,1734249220454,-268.3,0.00012952,2]
[345421595,1734249220475,-268.3,0.00012956,2]
[345421596,1734249220495,-1011.72,0.00013003,2]
[345421597,1734249220516,-500.0,0.00013046,2]
[345421598,1734249220537,-876.73729,0.00013047,2]
[345421599,1734249220558,-185.6881003,0.00013598,2]
[345421600,1734249220580,-500.0,0.00013698,2]
[345421601,1734249220601,-226.52,0.00013698,2]
[345421602,1734249220622,-500.0,0.00013698,2]
[345421603,1734249220642,-500.0,0.00013698,2]
[345421604,1734249220663,-500.0,0.00013698,2]
[345421605,1734249220684,-500.0,0.00013698,2]
[345421606,1734249220704,-500.0,0.00013698,2]
[345421607,1734249220725,-500.0,0.00013698,2]
[345421608,1734249220745,-500.0,0.00013698,2]
[345421609,1734249220766,-520.56,0.00013698,2]
[345421610,1734249220786,-497.0483245,0.00013698,2]
[345421611,1734249220806,-500.0,0.00013698,2]
[345421612,1734249220827,-500.0,0.00013698,2]
[345421613,1734249220847,-519.69,0.00013698,2]
[345421614,1734249220867,-500.0,0.00013698,2]
[345421615,1734249220887,-315.13576104,0.00013698,2]
[345421616,1734249220906,-500.0,0.00013698,2]
[345421617,1734249220926,-500.0,0.00013698,2]
[345421618,1734249220947,-551.31,0.00013698,2]
[345421619,1734249220969,-477.57382511,0.00013698,2]
[345421620,1734249220989,-551.31,0.00013698,2]
[345421621,1734249221011,-551.31,0.00013698,2]
[345421622,1734249221033,-500.0,0.00013698,2]
[345421623,1734249221054,-551.31,0.00013698,2]
[345421624,1734249221074,-551.31,0.00013698,2]
[345421625,1734249221094,-500.0,0.00013698,2]
[345421626,1734249221114,-551.31,0.00013698,2]
[345421627,1734249221136,-556.29,0.00013698,2]
[345421628,1734249221155,-626.87274157,0.00013698,2]
[345421629,1734249221175,-500.0,0.00013698,2]
[345421630,1734249221196,-556.29,0.00013698,2]
[345421631,1734249221215,-500.0,0.00013698,2]
[345421632,1734249221236,-556.29,0.00013698,2]
[345421633,1734249221256,-551.31,0.00013698,2]
[345421634,1734249221276,-500.0,0.00013698,2]
[345421635,1734249221298,-556.29,0.00013698,2]
[345421636,1734249221318,-551.31,0.00013698,2]
[345421637,1734249221339,-556.29,0.00013698,2]
[345421638,1734249221361,-551.31,0.00013698,2]
[345421639,1734249221384,-556.29,0.00013698,2]
[345421640,1734249221408,-551.31,0.00013698,2]
[345421641,1734249221432,-556.29,0.00013698,2]
[345421642,1734249221457,-551.31,0.00013698,2]
[345421643,1734249221482,-556.29,0.00013698,2]
[345421644,1734249221502,-551.31,0.00013698,2]
[345421645,1734249221522,-500.0,0.00013698,2]
[345421646,1734249221548,-556.29,0.00013698,2]
[345421647,1734249221569,-551.31,0.00013698,2]
[345421648,1734249221589,-556.29,0.00013698,2]
[345421649,1734249221611,-551.31,0.00013698,2]
[345421650,1734249221632,-500.0,0.00013698,2]
[345421651,1734249221656,-556.29,0.00013698,2]
[345421652,1734249221677,-551.31,0.00013698,2]
[345421653,1734249221699,-500.0,0.00013698,2]
[345421654,1734249221723,-551.31,0.00013698,2]
[345421655,1734249221745,-556.29,0.00013698,2]
[345421656,1734249221768,-500.0,0.00013698,2]
[345421657,1734249221800,-551.31,0.00013698,2]
[345421658,1734249221821,-556.29,0.00013698,2]
[345421659,1734249221840,-551.31,0.00013698,2]
[345421660,1734249221861,-556.29,0.00013698,2]
[345421661,1734249221881,-500.0,0.00013698,2]
[345421662,1734249221901,-551.31,0.00013698,2]
[345421663,1734249221921,-500.0,0.00013698,2]
[345421664,1734249221941,-556.29,0.00013698,2]
[345421665,1734249221963,-551.31,0.00013698,2]
[345421666,1734249221983,-500.0,0.00013698,2]
[345421667,1734249222005,-556.29,0.00013698,2]
[345421668,1734249222025,-551.31,0.00013698,2]
[345421669,1734249222047,-556.29,0.00013698,2]
[345421670,1734249222066,-551.31,0.00013698,2]
[345421671,1734249222086,-556.29,0.00013698,2]
[345421672,1734249222106,-500.0,0.00013698,2]
[345421673,1734249222127,-551.31,0.00013698,2]
[345421674,1734249222148,-556.29,0.00013698,2]
[345421675,1734249222168,-500.0,0.00013698,2]
[345421676,1734249222188,-551.42,0.00013698,2]
[345421677,1734249222208,-500.0,0.00013698,2]
[345421678,1734249222229,-556.29,0.00013698,2]
[345421679,1734249222249,-500.0,0.00013698,2]
[345421680,1734249222269,-556.29,0.00013698,2]
[345421681,1734249222291,-428.93353737,0.00013698,2]
[345421682,1734249222312,-556.29,0.00013698,2]
[345421683,1734249222331,-614.98,0.00013698,2]
[345421684,1734249222352,-556.29,0.00013698,2]
[345421685,1734249222372,-556.46,0.00013698,2]
[345421686,1734249222394,-500.0,0.00013698,2]
[345421687,1734249222414,-500.0,0.00013698,2]
[345421688,1734249222435,-500.0,0.00013698,2]
[345421689,1734249222456,-500.0,0.00013698,2]
[345421690,1734249222476,-500.0,0.00013698,2]
[345421691,1734249222497,-500.0,0.00013698,2]
[345421692,1734249222520,-520.80975774,0.00013698,2]
[345421693,1734249222542,-262.08,0.00013698,2]
[345421694,1734249222563,-500.0,0.00013698,2]
[345421695,1734249222584,-549.07,0.00013698,2]
[345421696,1734249222604,-500.0,0.00013698,2]
[345421697,1734249222625,-407.06,0.00013698,2]
[345421698,1734249222647,-500.0,0.00013698,2]
[345421699,1734249222668,-500.0,0.00013698,2]
[345421700,1734249222689,-500.0,0.00013698,2]
[345421701,1734249222710,-500.0,0.00013698,2]
[345421702,1734249222731,-500.0,0.00013698,2]
[345421703,1734249222752,-500.0,0.00013698,2]
[345421704,1734249222946,-332.04,0.00013698,2]
[345421705,1734249222969,-500.0,0.00013698,2]
[345421706,1734249222991,-501.59248202,0.00013698,2]
[345421707,1734249223015,-500.0,0.00013698,2]
[345421708,1734249223037,-500.0,0.00013698,2]
[345421709,1734249223058,-500.0,0.00013698,2]
[345421710,1734249223079,-277.9479236,0.00013698,2]
[345421711,1734249223101,-496.65,0.00013698,2]
[345421712,1734249223123,-500.0,0.00013698,2]
[345421713,1734249223144,-500.0,0.00013698,2]
[345421714,1734249223165,-500.0,0.00013698,2]
[345421715,1734249223185,-520.94,0.00013698,2]
[345421716,1734249223206,-153.5,0.00013698,2]
[345421717,1734249223228,-578.90995675,0.00013698,2]
[345421718,1734249233871,336.65,0.00017602,120]
[345421721,1734250199294,4500.0,0.00019,30]
[345421722,1734250231507,10000.74229081,0.0002,120]
[345421726,1734250232825,-389.73,0.00010137,2]
[345421727,1734250232835,-286.30998131,0.00010255,2]
[345421728,1734250232844,-1241.93,0.00010355,2]
[345421729,1734250232854,-286.30998131,0.00011877,2]
[345421730,1734250232864,-1477.15819039,0.00012265,2]
[345421731,1734250232884,-1260.82180961,0.00012265,2]
[345421732,1734250232893,-318.30093559,0.00012567,2]
[345421733,1734250237365,-684.95906441,0.00012567,2]
[345421734,1734250237375,-992.98,0.00012567,2]
[345421735,1734250237390,-980.13,0.00012567,2]
[345421736,1734250237401,-982.59,0.00012567,2]
[345421737,1734250237411,-1241.93,0.00012619,2]
[345421738,1734250237422,-154.53,0.00012628,2]
[345421739,1734250237432,-250.0,0.00012669,2]
[345421740,1734250237443,-170.59,0.00012686,2]
[345421741,1734250237454,-998.99,0.00012713,2]
[345421742,1734250237463,-1001.27,0.0001275,2]
[345421743,1734250237473,-213.91338922,0.00012767,2]
[345421744,1734250237482,-1003.49,0.00012767,2]
[345421745,1734250237492,-992.33,0.00012767,2]
[345421746,1734250237502,-995.68,0.00012767,2]
[345421747,1734250237512,-1500.0,0.00012767,2]
[345421748,1734250237524,-1096.86,0.0001296,2]
[345421749,1734250237534,-983.77,0.00012961,2]
[345421750,1734250237544,-1013.22,0.00012961,2]
[345421751,1734250237555,-450.0,0.00013,2]
[345421752,1734250237565,-711.02513815,0.00013054,2]
[345421753,1734250237675,-2341.0189324,0.00013054,2]
[345421763,1734250242707,-4630.29411405,0.00010155,2]
[345421764,1734250242716,-8216.11592945,0.00013054,2]
[345421765,1734250242726,-250.0,0.00013054,2]
[345421766,1734250242735,-1019.98,0.00013054,2]
[345421767,1734250242744,-274.27,0.0001316,2]
[345421768,1734250242754,-994.59,0.00013227,2]
[345421769,1734250242763,-1000.0,0.00013331,2]
[345421770,1734250242772,-980.63,0.00013412,2]
[345421771,1734250242781,-286.30998131,0.00013498,2]
[345421772,1734250242789,-200.0,0.00013522,2]
[345421773,1734250242798,-1014.65,0.00013537,2]
[345421774,1734250242807,-981.35,0.00013561,2]
[345421775,1734250242816,-1003.19,0.00013561,2]
[345421776,1734250242826,-989.44,0.00013561,2]
[345421777,1734250242835,-992.37,0.00013561,2]
[345421778,1734250242844,-985.34,0.00013561,2]
[345421779,1734250242854,-10645.0,0.00013561,2]
[345421780,1734250242863,-150.0,0.00013579,2]
[345421781,1734250242872,-1468.988,0.00013598,2]
[345421782,1734250242882,-170.53839639,0.00013598,2]
[345421783,1734250242891,-587.704,0.00013598,2]
[345421784,1734250242900,-1012.64,0.00013598,2]
[345421785,1734250242909,-1000.89,0.00013598,2]
[345421786,1734250242920,-999.78,0.00013598,2]
[345421787,1734250242933,-989.27,0.00013598,2]
[345421788,1734250242942,-5828.3601,0.00013598,2]
[345421789,1734250242952,-30832.29755437,0.00013598,2]
[345421795,1734250245364,-3990.09471752,0.00013598,2]
[345421796,1734250245377,-3585.95542811,0.00013598,2]
[345421797,1734250245387,-981.15,0.00013627,2]
[345421798,1734250245396,-984.18,0.00013644,2]
[345421799,1734250245407,-285.300313,0.00013698,2]
[345421800,1734250245417,-187.384506,0.00013698,2]
[345421801,1734250245426,-187.384506,0.00013698,2]
[345421802,1734250245436,-187.384506,0.00013698,2]
[345421803,1734250245445,-187.384506,0.00013698,2]
[345421804,1734250245455,-607.79756534,0.00013698,2]
[345421805,1734250245464,-500.0,0.00013698,2]
[345421806,1734250245473,-500.0,0.00013698,2]
[345421807,1734250245483,-500.0,0.00013698,2]
[345421808,1734250245493,-500.0,0.00013698,2]
[345421809,1734250245502,-206.30021804,0.00013698,2]
[345421810,1734250245512,-500.0,0.00013698,2]
[345421811,1734250245521,-500.0,0.00013698,2]
[345421812,1734250245531,-502.71112348,0.00013698,2]
[345421813,1734250245540,-21.81545979,0.00013698,2]
[345421814,1734250245553,-478.18454021,0.00013698,2]
[345421815,1734250245563,-220.25372451,0.00013698,2]
[345421816,1734250245573,-500.0,0.00013698,2]
[345421817,1734250245584,-500.0,0.00013698,2]
[345421818,1734250245593,-226.89774133,0.00013698,2]
[345421819,1734250245608,-273.10225867,0.00013698,2]
[345421820,1734250245617,-500.0,0.00013698,2]
[345421821,1734250245627,-500.0,0.00013698,2]
[345421822,1734250245636,-500.0,0.00013698,2]
[345421823,1734250245645,-500.0,0.00013698,2]
[345421824,1734250245656,-500.0,0.00013698,2]
[345421825,1734250245665,-500.0,0.00013698,2]
[345421826,1734250245674,-500.0,0.00013698,2]
[345421827,1734250245684,-283.18253118,0.00013698,2]
[345421828,1734250245695,-500.0,0.00013698,2]
[345421829,1734250245705,-500.0,0.00013698,2]
[345421830,1734250245715,-500.0,0.00013698,2]
[345421831,1734250245729,-502.6699634,0.00013698,2]
[345421832,1734250245739,-500.0,0.00013698,2]
[345421833,1734250245749,-241.86,0.00013698,2]
[345421834,1734250245758,-500.48108241,0.00013698,2]
[345421835,1734250245767,-500.0,0.00013698,2]
[345421836,1734250245776,-500.0,0.00013698,2]
[345421837,1734250245785,-501.43318679,0.00013698,2]
[345421838,1734250245794,-500.0,0.00013698,2]
[345421839,1734250245804,-502.04460851,0.00013698,2]
[345421840,1734250245813,-502.47286975,0.00013698,2]
[345421841,1734250245823,-500.0,0.00013698,2]